[Event "Kvibergspelen September 2019"]
[Site "Prioritet Serneke Arena, Krutvagen 2, Gothenburg, Sweden"]
[Date "2019.09.27"]
[Round "2.7"]
[White "Svorono, Gabriel"]
[Black "Seo, Jung Min"]
[Result "0-1"]
[TimeControl "15 minutes + 5 seconds per move from move one (Round 1 - 4) / 90 minutes + 30 seconds per move from move one (Round 5 - 8)"]
[BlackTitle "FM"]
[WhiteFideId "1715623"]
[BlackFideId "1734687"]
[WhiteElo "2082"]
[BlackElo "2437"]

1. e4 {[%clk 00:15:08]} {[%emt 00:00:01]} c5 {[%clk 00:15:09]} {[%emt
00:00:01]} 2. Nf3 {[%clk 00:15:09]} {[%emt 00:00:04]} Nc6 {[%clk 00:15:13]}
{[%emt 00:00:02]} 3. d4 {[%clk 00:15:09]} {[%emt 00:00:04]} cxd4 {[%clk
00:15:16]} {[%emt 00:00:02]} 4. Nxd4 {[%clk 00:15:12]} {[%emt 00:00:02]} Nf6
{[%clk 00:15:19]} {[%emt 00:00:02]} 5. Nc3 {[%clk 00:15:15]} {[%emt 00:00:02]}
d6 {[%emt 00:00:06]} 6. f3 {[%clk 00:15:13]} {[%emt 00:00:03]} e5 {[%clk
00:15:06]} {[%emt 00:00:21]} 7. Nb3 {[%clk 00:15:10]} {[%emt 00:00:08]} Be7
{[%clk 00:15:04]} {[%emt 00:00:07]} 8. Be3 {[%clk 00:15:12]} {[%emt 00:00:03]}
Be6 {[%clk 00:15:06]} {[%emt 00:00:03]} 9. Qd2 {[%clk 00:15:10]} {[%emt
00:00:07]} O-O {[%clk 00:15:05]} {[%emt 00:00:06]} 10. g4 {[%clk 00:14:42]}
{[%emt 00:00:33]} a5 {[%clk 00:15:04]} {[%emt 00:00:06]} 11. a4 {[%clk
00:13:50]} {[%emt 00:00:57]} Nb4 {[%clk 00:14:59]} {[%emt 00:00:11]} 12. Nb5
{[%clk 00:13:25]} {[%emt 00:00:30]} Rc8 {[%clk 00:14:54]} {[%emt 00:00:10]} 13.
Bd3 {[%clk 00:11:27]} {[%emt 00:02:02]} d5 {[%clk 00:14:12]} {[%emt 00:00:48]}
14. g5 {[%clk 00:10:10]} {[%emt 00:01:21]} Nh5 {[%clk 00:13:53]} {[%emt
00:00:25]} 15. h4 {[%clk 00:09:45]} {[%emt 00:00:30]} d4 {[%clk 00:13:27]}
{[%emt 00:00:31]} 16. Bf2 {[%clk 00:09:44]} {[%emt 00:00:04]} Nf4 {[%clk
00:13:22]} {[%emt 00:00:11]} 17. c4 {[%emt 00:01:47]} 0-1

[Event "Kvibergspelen September 2019"]
[Site "Prioritet Serneke Arena, Krutvagen 2, Gothenburg, Sweden"]
[Date "2019.09.27"]
[Round "2.8"]
[White "Le, Quang Long"]
[Black "Bengtsson, Siv"]
[Result "1-0"]
[TimeControl "15 minutes + 5 seconds per move from move one (Round 1 - 4) / 90 minutes + 30 seconds per move from move one (Round 5 - 8)"]
[WhiteTitle "IM"]
[WhiteFideId "12401749"]
[BlackFideId "1701673"]
[WhiteElo "2415"]
[BlackElo "2086"]

1. Nf3 {[%clk 00:15:06]} {[%emt 00:00:03]} Nf6 {[%clk 00:15:07]} {[%emt
00:00:03]} 2. g3 {[%clk 00:14:53]} {[%emt 00:00:18]} g6 {[%clk 00:15:08]}
{[%emt 00:00:05]} 3. Bg2 {[%clk 00:14:56]} {[%emt 00:00:02]} d5 {[%clk
00:15:11]} {[%emt 00:00:01]} 4. c4 {[%clk 00:14:59]} {[%emt 00:00:02]} Bg7
{[%clk 00:15:14]} {[%emt 00:00:02]} 5. cxd5 {[%clk 00:14:57]} {[%emt 00:00:08]}
Nxd5 {[%clk 00:15:16]} {[%emt 00:00:02]} 6. Nc3 {[%clk 00:14:16]} {[%emt
00:00:46]} Nb6 {[%clk 00:15:05]} {[%emt 00:00:17]} 7. h4 {[%clk 00:14:01]}
{[%emt 00:00:19]} h5 {[%clk 00:14:34]} {[%emt 00:00:36]} 8. d3 {[%clk
00:13:43]} {[%emt 00:00:23]} Nc6 {[%clk 00:13:56]} {[%emt 00:00:43]} 9. Bf4
{[%clk 00:13:21]} {[%emt 00:00:27]} Bg4 {[%clk 00:13:08]} {[%emt 00:00:54]} 10.
Qd2 {[%clk 00:12:27]} {[%emt 00:00:58]} Qd7 {[%clk 00:10:39]} {[%emt 00:02:34]}
11. O-O {[%clk 00:12:04]} {[%emt 00:00:28]} e5 {[%clk 00:10:26]} {[%emt
00:00:17]} 12. Bg5 {[%clk 00:11:33]} {[%emt 00:00:36]} O-O {[%clk 00:10:01]}
{[%emt 00:00:30]} 13. Ne4 {[%clk 00:10:29]} {[%emt 00:01:09]} f6 {[%clk
00:09:01]} {[%emt 00:01:05]} 14. Nc5 {[%clk 00:09:23]} {[%emt 00:01:11]} Qe7
{[%clk 00:08:07]} {[%emt 00:00:58]} 15. Be3 {[%clk 00:09:27]} {[%emt 00:00:02]}
Nd8 {[%clk 00:07:50]} {[%emt 00:00:22]} 16. Nh2 {[%clk 00:09:06]} {[%emt
00:00:25]} c6 {[%clk 00:07:09]} {[%emt 00:00:46]} 17. Nxg4 {[%clk 00:08:45]}
{[%emt 00:00:26]} hxg4 {[%clk 00:07:13]} {[%emt 00:00:02]} 18. Qb4 {[%clk
00:07:21]} {[%emt 00:01:29]} f5 {[%clk 00:06:14]} {[%emt 00:01:04]} 19. Bg5
{[%clk 00:07:12]} {[%emt 00:00:14]} Bf6 {[%clk 00:05:49]} {[%emt 00:00:30]} 20.
Bxf6 {[%clk 00:06:58]} {[%emt 00:00:20]} Rxf6 {[%clk 00:05:32]} {[%emt
00:00:22]} 21. Rac1 {[%clk 00:06:59]} {[%emt 00:00:03]} Ne6 {[%clk 00:04:52]}
{[%emt 00:00:45]} 22. e3 {[%clk 00:05:55]} {[%emt 00:01:09]} Rd8 {[%clk
00:04:40]} {[%emt 00:00:18]} 23. Rfd1 {[%clk 00:05:08]} {[%emt 00:00:51]} Nxc5
{[%clk 00:04:42]} {[%emt 00:00:03]} 24. Rxc5 {[%clk 00:05:11]} {[%emt
00:00:02]} Rfd6 {[%clk 00:04:04]} {[%emt 00:00:43]} 25. Qb3+ {[%clk 00:04:43]}
{[%emt 00:00:33]} Kg7 {[%clk 00:03:52]} {[%emt 00:00:17]} 26. Ra5 {[%clk
00:04:36]} {[%emt 00:00:12]} Nc8 {[%clk 00:03:28]} {[%emt 00:00:29]} 27. Qc3
{[%clk 00:04:38]} {[%emt 00:00:03]} Re6 {[%clk 00:03:17]} {[%emt 00:00:16]} 28.
d4 {[%clk 00:04:05]} {[%emt 00:00:38]} b6 {[%clk 00:02:53]} {[%emt 00:00:30]}
29. Ra4 {[%clk 00:04:08]} {[%emt 00:00:02]} c5 {[%clk 00:02:34]} {[%emt
00:00:23]} 30. Rc1 {[%clk 00:03:15]} {[%emt 00:00:58]} cxd4 {[%clk 00:02:21]}
{[%emt 00:00:18]} 31. exd4 {[%clk 00:03:19]} {[%emt 00:00:02]} Kh7 {[%clk
00:01:58]} {[%emt 00:00:28]} 32. d5 {[%clk 00:02:40]} {[%emt 00:00:43]} Red6
{[%clk 00:02:01]} {[%emt 00:00:02]} 33. Rc4 {[%clk 00:02:44]} {[%emt 00:00:02]}
e4 {[%clk 00:01:47]} {[%emt 00:00:18]} 34. Rxc8 {[%clk 00:02:43]} {[%emt
00:00:06]} 1-0

[Event "Kvibergspelen September 2019"]
[Site "Prioritet Serneke Arena, Krutvagen 2, Gothenburg, Sweden"]
[Date "2019.09.27"]
[Round "2.9"]
[White "Carlsson, Ludvig"]
[Black "Lindberg, Bengt"]
[Result "1/2-1/2"]
[TimeControl "15 minutes + 5 seconds per move from move one (Round 1 - 4) / 90 minutes + 30 seconds per move from move one (Round 5 - 8)"]
[WhiteTitle "CM"]
[BlackTitle "IM"]
[WhiteFideId "1727010"]
[BlackFideId "1700359"]
[WhiteElo "2066"]
[BlackElo "2397"]

1. Nf3 {[%clk 00:15:06]} {[%emt 00:00:02]} Nf6 {[%clk 00:15:06]} {[%emt
00:00:05]} 2. c4 {[%clk 00:15:06]} {[%emt 00:00:05]} c5 {[%clk 00:15:07]}
{[%emt 00:00:04]} 3. g3 {[%clk 00:15:08]} {[%emt 00:00:03]} e6 {[%clk
00:14:47]} {[%emt 00:00:25]} 4. Bg2 {[%clk 00:15:08]} {[%emt 00:00:05]} Nc6
{[%clk 00:14:46]} {[%emt 00:00:06]} 5. O-O {[%clk 00:15:07]} {[%emt 00:00:05]}
Be7 {[%clk 00:14:47]} {[%emt 00:00:04]} 6. b3 {[%clk 00:14:48]} {[%emt
00:00:25]} O-O {[%clk 00:14:29]} {[%emt 00:00:23]} 7. Bb2 {[%clk 00:14:50]}
{[%emt 00:00:02]} d5 {[%clk 00:14:05]} {[%emt 00:00:30]} 8. cxd5 {[%clk
00:13:39]} {[%emt 00:01:17]} Nxd5 {[%clk 00:14:07]} {[%emt 00:00:03]} 9. d4
{[%clk 00:11:27]} {[%emt 00:02:16]} Bd7 {[%clk 00:11:53]} {[%emt 00:02:19]} 10.
Nc3 {[%clk 00:10:30]} {[%emt 00:01:03]} Nxc3 {[%clk 00:10:31]} {[%emt
00:01:27]} 11. Bxc3 {[%clk 00:10:33]} {[%emt 00:00:02]} Rc8 {[%clk 00:10:33]}
{[%emt 00:00:02]} 12. Rc1 {[%clk 00:10:00]} {[%emt 00:00:38]} b6 {[%clk
00:09:23]} {[%emt 00:01:15]} 13. dxc5 {[%clk 00:08:52]} {[%emt 00:01:13]} Bxc5
{[%clk 00:09:24]} {[%emt 00:00:04]} 14. Qd2 {[%clk 00:08:54]} {[%emt 00:00:02]}
Qe7 {[%clk 00:09:09]} {[%emt 00:00:20]} 15. Rfd1 {[%clk 00:07:02]} {[%emt
00:01:58]} Rfd8 {[%clk 00:09:06]} {[%emt 00:00:07]} 16. e3 {[%clk 00:05:53]}
{[%emt 00:01:14]} Be8 {[%clk 00:08:38]} {[%emt 00:00:32]} 17. Qe2 {[%clk
00:05:54]} {[%emt 00:00:05]} Nb4 {[%clk 00:07:46]} {[%emt 00:00:57]} 18. Rxd8
{[%clk 00:03:03]} {[%emt 00:02:56]} Rxd8 {[%clk 00:07:47]} {[%emt 00:00:04]} 19.
a3 {[%clk 00:00:30]} {[%emt 00:02:38]} Nd5 {[%clk 00:04:21]} {[%emt 00:03:30]}
20. b4 {[%clk 00:00:33]} {[%emt 00:00:02]} Nxc3 {[%clk 00:04:12]} {[%emt
00:00:15]} 21. Rxc3 {[%clk 00:00:37]} {[%emt 00:00:01]} Bd6 {[%clk 00:04:14]}
{[%emt 00:00:02]} 22. Nd4 {[%clk 00:00:39]} {[%emt 00:00:03]} g6 {[%clk
00:03:13]} {[%emt 00:01:06]} 23. Nc6 {[%clk 00:00:25]} {[%emt 00:00:19]} Bxc6
{[%clk 00:03:15]} {[%emt 00:00:03]} 24. Rxc6 {[%clk 00:00:26]} {[%emt
00:00:04]} Be5 {[%clk 00:03:18]} {[%emt 00:00:02]} 25. Bf3 {[%clk 00:00:07]}
{[%emt 00:00:24]} Kg7 {[%clk 00:02:46]} {[%emt 00:00:37]} 26. Kg2 {[%clk
00:00:11]} {[%emt 00:00:02]} Rd7 {[%clk 00:02:16]} {[%emt 00:00:35]} 27. Qc2
{[%clk 00:00:13]} {[%emt 00:00:03]} Qf6 {[%clk 00:01:37]} {[%emt 00:00:44]} 28.
h4 {[%clk 00:00:11]} {[%emt 00:00:06]} h5 {[%clk 00:01:35]} {[%emt 00:00:08]}
29. a4 {[%clk 00:00:13]} {[%emt 00:00:03]} Qe7 {[%clk 00:01:30]} {[%emt
00:00:09]} 30. Qe4 {[%clk 00:00:10]} {[%emt 00:00:09]} Bf6 {[%clk 00:01:29]}
{[%emt 00:00:06]} 31. Qc4 {[%clk 00:00:10]} {[%emt 00:00:05]} Be5 {[%clk
00:01:13]} {[%emt 00:00:20]} 32. a5 {[%clk 00:00:11]} {[%emt 00:00:05]} bxa5
{[%clk 00:01:10]} {[%emt 00:00:08]} 33. bxa5 {[%clk 00:00:14]} {[%emt
00:00:02]} Bf6 {[%clk 00:00:46]} {[%emt 00:00:28]} 34. a6 {[%clk 00:00:16]}
{[%emt 00:00:03]} Qa3 {[%clk 00:00:41]} {[%emt 00:00:09]} 35. Rc7 {[%clk
00:00:18]} {[%emt 00:00:04]} Rxc7 {[%clk 00:00:40]} {[%emt 00:00:06]} 36. Qxc7
{[%clk 00:00:21]} {[%emt 00:00:02]} Qxa6 {[%clk 00:00:43]} {[%emt 00:00:02]} 37.
Bc6 {[%clk 00:00:21]} {[%emt 00:00:05]} Qc4 {[%clk 00:00:26]} {[%emt 00:00:22]}
38. Qb7 {[%clk 00:00:18]} {[%emt 00:00:08]} Qc5 {[%clk 00:00:25]} {[%emt
00:00:05]} 39. Be8 {[%clk 00:00:13]} {[%emt 00:00:11]} Qd5+ {[%clk 00:00:21]}
{[%emt 00:00:08]} 40. Qxd5 {[%clk 00:00:15]} {[%emt 00:00:03]} exd5 {[%clk
00:00:25]} {[%emt 00:00:01]} 41. Bc6 {[%clk 00:00:08]} {[%emt 00:00:12]} d4
{[%clk 00:00:29]} {[%emt 00:00:01]} 42. exd4 {[%clk 00:00:11]} {[%emt
00:00:02]} Bxd4 {[%clk 00:00:33]} {[%emt 00:00:01]} 43. Bb5 {[%clk 00:00:11]}
{[%emt 00:00:04]} a5 {[%clk 00:00:36]} {[%emt 00:00:01]} 44. f3 {[%clk
00:00:11]} {[%emt 00:00:06]} f6 {[%clk 00:00:35]} {[%emt 00:00:06]} 45. Be8
{[%clk 00:00:10]} {[%emt 00:00:05]} Kh6 {[%clk 00:00:38]} {[%emt 00:00:02]} 46.
Kh3 {[%clk 00:00:13]} {[%emt 00:00:02]} g5 {[%clk 00:00:35]} {[%emt 00:00:08]}
47. g4 {[%clk 00:00:13]} {[%emt 00:00:05]} hxg4+ {[%clk 00:00:36]} {[%emt
00:00:04]} 48. hxg5+ {[%clk 00:00:15]} {[%emt 00:00:04]} Kxg5+ {[%clk
00:00:36]} {[%emt 00:00:04]} 49. fxg4 {[%clk 00:00:17]} {[%emt 00:00:02]} Kf4
{[%clk 00:00:40]} {[%emt 00:00:02]} 50. Kh4 {[%clk 00:00:20]} {[%emt 00:00:03]}
Be3 {[%clk 00:00:37]} {[%emt 00:00:08]} 51. Bc6 {[%clk 00:00:18]} {[%emt
00:00:08]} Ke5 {[%clk 00:00:38]} {[%emt 00:00:04]} 52. Kg3 {[%clk 00:00:21]}
{[%emt 00:00:01]} Kd4 {[%clk 00:00:41]} {[%emt 00:00:04]} 53. Kf3 {[%clk
00:00:20]} {[%emt 00:00:05]} Bg5 {[%clk 00:00:42]} {[%emt 00:00:03]} 54. Ke2
{[%clk 00:00:22]} {[%emt 00:00:04]} Kc3 {[%clk 00:00:45]} {[%emt 00:00:01]} 55.
Kd1 {[%clk 00:00:24]} {[%emt 00:00:03]} Kb3 {[%clk 00:00:45]} {[%emt 00:00:05]}
56. Bd5+ {[%clk 00:00:25]} {[%emt 00:00:04]} Kb2 {[%clk 00:00:17]} {[%emt
00:00:33]} 57. Bc6 {[%clk 00:00:29]} {[%emt 00:00:01]} Kc3 {[%clk 00:00:16]}
{[%emt 00:00:07]} 58. Bd7 {[%clk 00:00:31]} {[%emt 00:00:02]} Kb3 {[%clk
00:00:11]} {[%emt 00:00:10]} 59. Be6+ {[%clk 00:00:34]} {[%emt 00:00:02]} Kb4
{[%clk 00:00:15]} 60. Kc2 {[%clk 00:00:37]} {[%emt 00:00:03]} a4 {[%clk
00:00:20]} {[%emt 00:00:01]} 61. Kb2 {[%clk 00:00:39]} {[%emt 00:00:03]} Be3
{[%clk 00:00:20]} {[%emt 00:00:05]} 62. Ka2 {[%clk 00:00:42]} {[%emt 00:00:01]}
Bc5 {[%clk 00:00:24]} {[%emt 00:00:02]} 63. Bc8 {[%clk 00:00:46]} {[%emt
00:00:01]} a3 {[%clk 00:00:12]} {[%emt 00:00:17]} 64. Bd7 {[%clk 00:00:48]}
{[%emt 00:00:02]} Kc3 {[%emt 00:00:03]} 65. Bc8 {[%clk 00:00:52]} 1/2-1/2

[Event "Kvibergspelen September 2019"]
[Site "Prioritet Serneke Arena, Krutvagen 2, Gothenburg, Sweden"]
[Date "2019.09.27"]
[Round "2.10"]
[White "Pantzar, Milton"]
[Black "Skou, Niels"]
[Result "1-0"]
[TimeControl "15 minutes + 5 seconds per move from move one (Round 1 - 4) / 90 minutes + 30 seconds per move from move one (Round 5 - 8)"]
[WhiteTitle "FM"]
[WhiteFideId "1721003"]
[BlackFideId "1413155"]
[WhiteElo "2376"]
[BlackElo "2082"]

1. d4 {[%clk 00:15:08]} {[%emt 00:00:01]} d5 {[%clk 00:15:07]} {[%emt
00:00:03]} 2. c4 {[%clk 00:15:11]} {[%emt 00:00:02]} e6 {[%clk 00:15:09]}
{[%emt 00:00:02]} 3. Nc3 {[%clk 00:15:14]} {[%emt 00:00:02]} Nf6 {[%clk
00:15:11]} {[%emt 00:00:03]} 4. cxd5 {[%clk 00:15:17]} {[%emt 00:00:02]} exd5
{[%clk 00:15:12]} {[%emt 00:00:04]} 5. Bg5 {[%clk 00:15:19]} {[%emt 00:00:02]}
Be7 {[%clk 00:15:11]} {[%emt 00:00:06]} 6. e3 {[%clk 00:15:22]} {[%emt
00:00:03]} c6 {[%clk 00:15:00]} {[%emt 00:00:16]} 7. Bd3 {[%clk 00:15:24]}
{[%emt 00:00:03]} Nbd7 {[%clk 00:14:58]} {[%emt 00:00:06]} 8. Qc2 {[%clk
00:15:25]} {[%emt 00:00:05]} h6 {[%clk 00:14:54]} {[%emt 00:00:09]} 9. Bh4
{[%clk 00:15:28]} {[%emt 00:00:03]} Nh5 {[%clk 00:14:46]} {[%emt 00:00:12]} 10.
Bxe7 {[%clk 00:15:14]} {[%emt 00:00:19]} Qxe7 {[%clk 00:14:48]} {[%emt
00:00:02]} 11. O-O-O {[%clk 00:15:13]} {[%emt 00:00:07]} Nb6 {[%clk 00:14:23]}
{[%emt 00:00:30]} 12. h3 {[%clk 00:15:07]} {[%emt 00:00:11]} Nf6 {[%clk
00:13:43]} {[%emt 00:00:45]} 13. Nf3 {[%clk 00:15:03]} {[%emt 00:00:09]} Be6
{[%clk 00:13:40]} {[%emt 00:00:07]} 14. Kb1 {[%clk 00:15:01]} {[%emt 00:00:08]}
O-O-O {[%clk 00:13:37]} {[%emt 00:00:08]} 15. Rc1 {[%clk 00:15:01]} {[%emt
00:00:05]} Kb8 {[%clk 00:13:22]} {[%emt 00:00:21]} 16. Na4 {[%clk 00:15:00]}
{[%emt 00:00:06]} Nxa4 {[%clk 00:12:56]} {[%emt 00:00:31]} 17. Qxa4 {[%clk
00:15:02]} {[%emt 00:00:02]} Nd7 {[%clk 00:12:53]} {[%emt 00:00:08]} 18. Rc3
{[%clk 00:13:33]} {[%emt 00:01:34]} Nb6 {[%clk 00:12:26]} {[%emt 00:00:32]} 19.
Qa5 {[%clk 00:13:31]} {[%emt 00:00:06]} f6 {[%clk 00:10:44]} {[%emt 00:01:47]}
20. Rhc1 {[%clk 00:13:01]} {[%emt 00:00:34]} Qd7 {[%clk 00:09:45]} {[%emt
00:01:04]} 21. Ka1 {[%clk 00:12:09]} {[%emt 00:00:58]} Qc7 {[%clk 00:09:30]}
{[%emt 00:00:21]} 22. Nd2 {[%clk 00:11:30]} {[%emt 00:00:44]} Nc8 {[%clk
00:08:32]} {[%emt 00:01:03]} 23. Qa4 {[%clk 00:10:33]} {[%emt 00:01:03]} Nb6
{[%clk 00:08:30]} {[%emt 00:00:07]} 24. Qb4 {[%clk 00:09:59]} {[%emt 00:00:38]}
Qd6 {[%clk 00:08:27]} {[%emt 00:00:08]} 25. Qa5 {[%clk 00:09:57]} {[%emt
00:00:07]} Qc7 {[%clk 00:08:10]} {[%emt 00:00:23]} 26. Nb3 {[%clk 00:08:15]}
{[%emt 00:01:46]} Nc8 {[%clk 00:07:12]} {[%emt 00:01:02]} 27. Qb4 {[%clk
00:07:44]} {[%emt 00:00:36]} Rhe8 {[%clk 00:05:27]} {[%emt 00:01:50]} 28. Nc5
{[%clk 00:07:36]} {[%emt 00:00:14]} Ka8 {[%clk 00:05:10]} {[%emt 00:00:22]} 29.
Qa4 {[%clk 00:03:59]} {[%emt 00:03:41]} Nb6 {[%clk 00:04:48]} {[%emt 00:00:26]}
30. Qa5 {[%clk 00:03:52]} {[%emt 00:00:12]} Kb8 {[%clk 00:03:40]} {[%emt
00:01:13]} 31. Ra3 {[%clk 00:02:23]} {[%emt 00:01:34]} Nc8 {[%clk 00:03:41]}
{[%emt 00:00:04]} 32. Qb4 {[%clk 00:02:20]} {[%emt 00:00:08]} Nb6 {[%clk
00:03:32]} {[%emt 00:00:14]} 33. Rb3 {[%clk 00:01:52]} {[%emt 00:00:34]} Ka8
{[%clk 00:02:57]} {[%emt 00:00:40]} 34. Qa5 {[%clk 00:01:48]} {[%emt 00:00:09]}
Kb8 {[%clk 00:02:51]} {[%emt 00:00:10]} 35. a4 {[%clk 00:00:44]} {[%emt
00:01:09]} Ka8 {[%clk 00:02:12]} {[%emt 00:00:44]} 36. Qb4 {[%clk 00:00:38]}
{[%emt 00:00:12]} Bc8 {[%clk 00:02:07]} {[%emt 00:00:09]} 37. a5 {[%clk
00:00:28]} {[%emt 00:00:15]} Nd7 {[%clk 00:02:09]} {[%emt 00:00:03]} 38. Na4
{[%clk 00:00:18]} {[%emt 00:00:15]} Re6 {[%clk 00:00:56]} {[%emt 00:01:18]} 39.
Bf5 {[%clk 00:00:21]} {[%emt 00:00:02]} Qd6 {[%clk 00:00:49]} {[%emt 00:00:11]}
40. Bxe6 {[%clk 00:00:23]} {[%emt 00:00:03]} Qxe6 {[%clk 00:00:48]} {[%emt
00:00:06]} 41. Nc5 {[%clk 00:00:24]} {[%emt 00:00:04]} Nxc5 {[%clk 00:00:37]}
{[%emt 00:00:16]} 42. Qxc5 {[%clk 00:00:27]} {[%emt 00:00:02]} Rd6 {[%clk
00:00:31]} {[%emt 00:00:11]} 43. Qc3 {[%clk 00:00:21]} {[%emt 00:00:11]} Qe7
{[%clk 00:00:29]} {[%emt 00:00:06]} 44. Qb4 {[%clk 00:00:22]} {[%emt 00:00:04]}
Qd8 {[%clk 00:00:28]} {[%emt 00:00:06]} 45. Rbc3 {[%clk 00:00:25]} {[%emt
00:00:03]} Re6 {[%clk 00:00:18]} {[%emt 00:00:14]} 46. a6 {[%clk 00:00:25]}
{[%emt 00:00:06]} c5 {[%clk 00:00:07]} {[%emt 00:00:16]} 47. Qxc5 {[%clk
00:00:15]} {[%emt 00:00:15]} Rxa6+ {[%clk 00:00:09]} {[%emt 00:00:03]} 48. Kb1
{[%clk 00:00:19]} {[%emt 00:00:01]} Bf5+ {[%clk 00:00:12]} 49. R1c2 {[%clk
00:00:21]} {[%emt 00:00:04]} Rc6 {[%clk 00:00:11]} {[%emt 00:00:07]} 50. Qb5
{[%clk 00:00:16]} {[%emt 00:00:08]} Rxc3 {[%clk 00:00:13]} {[%emt 00:00:03]} 51.
bxc3 {[%clk 00:00:19]} {[%emt 00:00:02]} a6 {[%clk 00:00:12]} {[%emt 00:00:06]}
52. Qc5 {[%clk 00:00:20]} {[%emt 00:00:03]} Qd7 {[%clk 00:00:15]} {[%emt
00:00:03]} 53. Qb4 {[%clk 00:00:17]} {[%emt 00:00:07]} Qc6 {[%clk 00:00:17]}
{[%emt 00:00:03]} 54. Kc1 {[%clk 00:00:19]} {[%emt 00:00:03]} Bxc2 {[%clk
00:00:20]} {[%emt 00:00:02]} 55. Kxc2 {[%clk 00:00:23]} Qd7 {[%clk 00:00:24]}
{[%emt 00:00:02]} 56. g4 {[%clk 00:00:25]} {[%emt 00:00:02]} f5 {[%clk
00:00:27]} {[%emt 00:00:02]} 57. f3 {[%clk 00:00:26]} {[%emt 00:00:04]} fxg4
{[%clk 00:00:30]} {[%emt 00:00:02]} 58. hxg4 {[%clk 00:00:30]} {[%emt
00:00:01]} h5 {[%clk 00:00:35]} 59. Qf8+ {[%clk 00:00:32]} {[%emt 00:00:04]}
Ka7 {[%clk 00:00:38]} {[%emt 00:00:03]} 60. gxh5 {[%clk 00:00:26]} {[%emt
00:00:10]} Qe6 {[%clk 00:00:38]} {[%emt 00:00:05]} 61. Qf4 {[%clk 00:00:24]}
{[%emt 00:00:06]} a5 {[%clk 00:00:40]} {[%emt 00:00:03]} 62. Qe5 {[%clk
00:00:27]} {[%emt 00:00:02]} Qd7 {[%clk 00:00:42]} {[%emt 00:00:03]} 63. e4
{[%clk 00:00:28]} {[%emt 00:00:04]} Qa4+ {[%clk 00:00:47]} 64. Kd2 {[%clk
00:00:29]} {[%emt 00:00:04]} Qa2+ {[%clk 00:00:51]} 65. Ke3 {[%clk 00:00:33]}
{[%emt 00:00:01]} dxe4 {[%clk 00:00:46]} {[%emt 00:00:10]} 66. fxe4 {[%clk
00:00:36]} {[%emt 00:00:02]} Qg2 {[%clk 00:00:47]} {[%emt 00:00:04]} 67. Qxa5+
{[%clk 00:00:39]} {[%emt 00:00:02]} Kb8 {[%clk 00:00:51]} 68. Qe5+ {[%clk
00:00:42]} {[%emt 00:00:02]} Ka7 {[%clk 00:00:54]} {[%emt 00:00:01]} 69. Qf5
{[%clk 00:00:39]} {[%emt 00:00:08]} Qg1+ {[%clk 00:00:58]} {[%emt 00:00:02]} 70.
Kf4 {[%clk 00:00:41]} {[%emt 00:00:02]} Qh2+ {[%clk 00:01:02]} 71. Ke3 {[%clk
00:00:42]} {[%emt 00:00:04]} Qg1+ {[%clk 00:01:06]} {[%emt 00:00:01]} 72. Kd3
{[%clk 00:00:46]} {[%emt 00:00:01]} Qb1+ {[%clk 00:01:09]} {[%emt 00:00:02]} 73.
Kc4 {[%clk 00:00:47]} {[%emt 00:00:03]} Qa2+ {[%clk 00:01:13]} {[%emt
00:00:02]} 74. Kc5 {[%clk 00:00:48]} {[%emt 00:00:03]} Qa5+ {[%clk 00:01:17]}
{[%emt 00:00:02]} 75. Kd6 {[%clk 00:00:52]} Qd8+ {[%clk 00:01:21]} {[%emt
00:00:01]} 76. Qd7 {[%clk 00:00:52]} {[%emt 00:00:05]} Qf6+ {[%clk 00:01:25]}
77. Kc7 {[%clk 00:00:53]} {[%emt 00:00:04]} Qb6 {[%clk 00:01:26]} {[%emt
00:00:04]} 78. Kc8 {[%clk 00:00:57]} Qb3 {[%clk 00:01:21]} {[%emt 00:00:10]} 79.
Qd5 {[%clk 00:00:38]} {[%emt 00:00:24]} Qxc3+ {[%clk 00:00:45]} {[%emt
00:00:41]} 80. Qc5+ {[%clk 00:00:42]} Qxc5+ {[%clk 00:00:49]} {[%emt 00:00:01]}
81. dxc5 {[%clk 00:00:46]} {[%emt 00:00:01]} b5 {[%clk 00:00:53]} 82. cxb6+
{[%clk 00:00:48]} {[%emt 00:00:03]} Kxb6 {[%clk 00:00:58]} 83. Kd7 {[%clk
00:00:52]} {[%emt 00:00:01]} Kc5 {[%clk 00:00:57]} {[%emt 00:00:06]} 84. e5
{[%clk 00:00:55]} {[%emt 00:00:01]} Kd5 {[%emt 00:00:07]} 1-0